[Event "Grand Prix Romania 1st Stage 2024"]
[Site "Bucuresti"]
[Date "2024.03.23"]
[Round "2.36"]
[White "Stepanencu, Nicodim-Cosmin"]
[Black "Bezeyko, Olexander"]
[Result "1-0"]
[ECO "D58"]
[WhiteElo "2278"]
[BlackElo "1956"]
[Annotator "RC"]
[PlyCount "107"]
[EventDate "2024.03.20"]
[EventType "swiss"]
[EventCountry "ROU"]
[SourceTitle "playchess.com"]
[Source "ChessBase"]
[SourceQuality "1"]
[TimeControl "900+5"]

1. d4 {[%emt 0:00:03]} Nf6 {[%emt 0:00:04]} 2. c4 {[%emt 0:00:03]} e6 {[%emt 0:00:03]} 3. Nc3 {[%emt 0:00:04]} d5 {[%emt 0:00:02]} 4. Nf3 {[%emt 0:00:22]} Be7 {[%emt 0:00:02]} 5. Bg5 {[%emt 0:00:03]} h6 {[%emt 0:00:01]} 6. Bh4 {[%emt 0:00:02]} O-O {[%emt 0:00:03]} 7. e3 {[%emt 0:00:01]} b6 {[%emt 0:00:03]} 8. Rc1 {[%emt 0:01:11]} Bb7 {[%emt 0:00:16]} 9. Bxf6 {[%emt 0:00:05]} Bxf6 {[%emt 0:00:04]} 10. cxd5 {[%emt 0:00:01]} Bxd5 {[%emt 0:02:02]} 11. Nxd5 {[%emt 0:00:04]} exd5 {[%emt 0:00:03]} 12. Be2 {[%emt 0:01:04]} Qd6 {[%emt 0:03:20]} 13. O-O {[%emt 0:00:39]} c5 {[%emt 0:00:12]} 14. dxc5 {[%emt 0:02:37]} bxc5 {[%emt 0:00:02]} 15. e4 {[%emt 0:00:01]} Bxb2 {[%emt 0:02:33]} 16. Rc2 {[%emt 0:00:02]} Bf6 {[%emt 0:00:25]} 17. exd5 {[%emt 0:04:55]} Rd8 {[%emt 0:00:26]} 18. Nd2 {[%emt 0:00:09]} Nd7 {[%emt 0:01:53]} 19. Nc4 {[%emt 0:01:17]} Qf4 {[%emt 0:00:30]} 20. Na5 {[%emt 0:00:48]} Qa4 {[%emt 0:03:34]} 21. Nb7 {[%emt 0:02:42]} Rdc8 {[%emt 0:00:43]} 22. Nd6 {[%emt 0:00:08]} Rc7 {[%emt 0:00:01]} 23. g3 {[%emt 0:00:26]} Rd8 {[%emt 0:00:22]} 24. Bb5 {[%emt 0:00:04]} Qd4 {[%emt 0:00:15]} 25. Bc6 {[%emt 0:00:10]} Nb6 {[%emt 0:00:02]} 26. Qxd4 {[%emt 0:00:08]} cxd4 {[%emt 0:00:03]} 27. Nb5 {[%emt 0:00:01]} Re7 {[%emt 0:00:02]} 28. d6 {[%emt 0:00:02]} Re6 {[%emt 0:00:05]} 29. Bb7 {[%emt 0:00:12]} Be5 {[%emt 0:00:08]} 30. Re1 {[%emt 0:00:01]} Bxd6 {[%emt 0:00:02]} 31. Rxe6 {[%emt 0:00:01]} fxe6 {[%emt 0:00:02]} 32. Nxd4 {[%emt 0:00:01]} Bxg3 {[%emt 0:00:03]} 33. Nxe6 {[%emt 0:00:12]} Rd1+ {[%emt 0:00:09]} 34. Kg2 {[%emt 0:00:01]} Be5 {[%emt 0:00:02]} 35. Rc5 {[%emt 0:00:13]} Bf6 {[%emt 0:00:05]} 36. Ra5 {[%emt 0:00:04]} Kf7 {[%emt 0:00:14]} 37. Nf4 {[%emt 0:00:07]} Rd7 {[%emt 0:00:02]} 38. Bc6 {[%emt 0:00:01]} Rc7 {[%emt 0:00:02]} 39. Be4 {[%emt 0:00:02]} g5 {[%emt 0:00:06]} 40. Nd3 {[%emt 0:00:04]} Nc4 {[%emt 0:00:07]} 41. Bd5+ {[%emt 0:00:01]} Kg6 {[%emt 0:00:03]} 42. Bxc4 {[%emt 0:00:09]} Rxc4 {[%emt 0:00:01]} 43. Rxa7 {[%emt 0:00:01]} Rc3 {[%emt 0:00:02]} 44. Ne1 {[%emt 0:00:17]} Rc1 {[%emt 0:00:06]} 45. Nf3 {[%emt 0:00:02]} Rc2 {[%emt 0:00:05]} 46. Ra6 {[%emt 0:00:01]} Kf5 {[%emt 0:00:06]} 47. h3 {[%emt 0:00:08]} h5 {[%emt 0:00:02]} 48. Ra5+ {[%emt 0:00:08]} Kg6 {[%emt 0:00:02]} 49. a4 {[%emt 0:00:05]} Ra2 {[%emt 0:00:09]} 50. Kg3 {[%emt 0:00:03]} Be7 {[%emt 0:00:15]} 51. Ra6+ {[%emt 0:00:03]} Kf5 {[%emt 0:00:07]} 52. Nd4+ {[%emt 0:00:08]} Ke4 {[%emt 0:00:02]} 53. Nb5 {[%emt 0:00:03]} Bc5 {[%emt 0:00:05]} 54. Nc3+ {[%emt 0:00:02]} 1-0

[Event "Grand Prix Romania 1st Stage 2024"]
[Site "Bucuresti"]
[Date "2024.03.23"]
[Round "2.37"]
[White "Roch, Florian"]
[Black "Shuvalova, Polina"]
[Result "0-1"]
[ECO "B90"]
[WhiteElo "1938"]
[BlackElo "2455"]
[Annotator "TA"]
[PlyCount "76"]
[EventDate "2024.03.20"]
[EventType "swiss"]
[EventCountry "ROU"]
[SourceTitle "playchess.com"]
[Source "ChessBase"]
[SourceQuality "1"]
[TimeControl "900+5"]

{[%evp 23,76,14,30,-44,-15,-16,-10,-37,-23,-100,-97,-68,0,0,20,-54,-42,-118,51,50,56,43,47,47,54,0,48,37,125,120,66,0,0,-74,-14,-117,-77,-87,-79,-75,0,0,0,0,0,-115,-62,-84,-64,-553,-210,-29995,-29996,-29998,-29999]} 1. e4 {[%emt 0:00:02]} c5 {[%emt 0:00:01]} 2. Nf3 {[%emt 0:00:04]} d6 {[%emt 0:00:02]} 3. d4 {[%emt 0:00:03]} cxd4 {[%emt 0:00:02]} 4. Nxd4 {[%emt 0:00:01]} Nf6 {[%emt 0:00:03]} 5. Nc3 {[%emt 0:00:02]} a6 {[%emt 0:00:01]} 6. f3 {[%emt 0:00:16]} e5 {[%emt 0:00:08]} 7. Nb3 {[%emt 0:00:02]} Be7 {[%emt 0:00:05]} 8. Be3 {[%emt 0:00:08]} Be6 {[%emt 0:00:03]} 9. Qd2 {[%emt 0:00:14]} Nbd7 {[%emt 0:00:09]} 10. O-O-O {[%emt 0:00:38]} O-O {[%emt 0:00:18]} 11. g4 {[%emt 0:00:32][%cal Bg2g4,Bg4g5][%mdl 32]} b5 {[%emt 0:00:04]} 12. g5 {[%emt 0:00:49]} Nh5 $1 {[%emt 0:00:05]} 13. Bd3 {[%emt 0:01:46]} (13. Nd5 $11) 13... Rc8 {[%emt 0:00:47]} 14. Kb1 {[%emt 0:00:12]} Nb6 {[%emt 0:00:09]} 15. Na5 {[%emt 0:01:27] The position is equal.} g6 {[%emt 0:00:45]} 16. h4 {[%emt 0:01:27] [#]} (16. a3 $11) 16... b4 $1 $17 {[%emt 0:00:23]} 17. Ne2 {[%emt 0:02:09]} Nd7 {[%emt 0:00:34]} (17... d5 $15 18. Bxa6 Ra8) 18. Nb3 $11 {[%emt 0:00:36]} a5 {[%emt 0:00:08]} 19. Bb5 {[%emt 0:00:17]} (19. f4 $1 $11) 19... Qc7 $15 {[%emt 0:01:03]} 20. f4 {[%emt 0:00:31]} (20. c3 $15) 20... exf4 $2 {[%emt 0:02:57]} (20... Rfd8 $17 {Strongly threatening ...Nc5.} 21. Ba6 a4) 21. Nxf4 $14 {[%emt 0:00:14]} Nxf4 {[%emt 0:02:02]} 22. Bxf4 {[%emt 0:00:02] h5 is the strong threat.} Ne5 {[%emt 0:00:02]} 23. Nd4 {[%emt 0:01:59] h5 would now be deadly.} Bg4 {[%emt 0:01:18]} 24. Rc1 {[%emt 0:00:31]} ({White should play} 24. h5 $14) 24... Qc5 {[%emt 0:00:22]} (24... Qb6 $11 {feels stronger.}) 25. Be3 {[%emt 0:00:58][%cal Od4c6] aiming for Nc6!} Nc4 {[%emt 0:00:11]} (25... Qc7 $1 $14) 26. Bxc4 $16 {[%emt 0:00:02]} Qxc4 {[%emt 0:00:01]} 27. Rcg1 {[%emt 0:00:45]} (27. h5 $1 $14) 27... Bh5 $11 {[%emt 0:00:04]} 28. Rh2 {[%emt 0:00:34] [#]} (28. Rf1 $11) 28... a4 {[%emt 0:00:06]} (28... Rfe8 $1 $17 29. b3 Qa6) 29. Ne2 {[%emt 0:00:10]} (29. Rf2 $11 {remains equal.}) 29... b3 {[%emt 0:00:09] Black is more active.} (29... Qxe4 $6 30. Ng3 Qe6 31. Nxh5 gxh5 32. Bd4 $11) 30. axb3 {[%emt 0:00:25]} axb3 {[%emt 0:00:01]} (30... Qxe4 $2 {is the wrong capture.} 31. Nc3 (31. Ng3 Qb7 $16) 31... Rxc3 32. Qxc3 $16) 31. Nc3 {[%emt 0:00:15]} Rb8 {[%emt 0:00:30]} ({Better is} 31... bxc2+ $17 32. Qxc2 Rfe8) 32. Qd5 {[%emt 0:00:24]} bxc2+ {[%emt 0:00:30]} 33. Rxc2 {[%emt 0:00:01]} Qa6 $36 {[%emt 0:00:02][%mdl 2048] White is under pressure.} 34. Kc1 {[%emt 0:00:05]} (34. Rf2 $11 {keeps the balance.}) 34... Rb4 {[%emt 0:00:40]} (34... Rfc8 $17 {White must now prevent ...Bd8.} 35. Kd2 Bf8) 35. Kd2 $15 {[%emt 0:00:06]} Rfb8 {[%emt 0:00:04][%cal Oe7f8]} 36. Nd1 $2 {[%emt 0:00:11][%mdl 8192]} (36. Qd3 $15 Qa5 37. Qd5) 36... Rb3 $2 {[%emt 0:00:36]} (36... Rxb2 {( -> ...Qe2+)} 37. Rxb2 Rxb2+ 38. Nxb2 Qe2+ 39. Kc3 Qxe3+ 40. Kc2 Qxg1) 37. Rc3 $2 {[%emt 0:00:06]} (37. Nc3 $19) 37... Rxb2+ {[%emt 0:00:15]} 38. Nxb2 {[%emt 0:00:02]} Qe2+ {[%emt 0:03:35] Weighted Error Value: White=0.77/Black=0.52.  Loses game:     	White=1     	---        Mistake:       	White=9     	Black=8      Inaccurate:     	White=1     	Black=2      OK:         	White=5     	Black=6      Best:        	White=3     	Black=1      Strong:       	---       	Black=1} 0-1

[Event "Grand Prix Romania 1st Stage 2024"]
[Site "Bucuresti"]
[Date "2024.03.23"]
[Round "2.38"]
[White "Efroimski, Marsel"]
[Black "Dima, Ioan-Radu"]
[Result "1-0"]
[ECO "B23"]
[WhiteElo "2467"]
[BlackElo "1913"]
[Annotator "RC"]
[PlyCount "113"]
[EventDate "2024.03.20"]
[EventType "swiss"]
[EventCountry "ROU"]
[SourceTitle "playchess.com"]
[Source "ChessBase"]
[SourceQuality "1"]
[TimeControl "900+5"]

1. e4 {[%emt 0:00:02]} c5 {[%emt 0:00:05]} 2. Nc3 {[%emt 0:00:14]} Nc6 {[%emt 0:00:12]} 3. Bb5 {[%emt 0:00:01]} Nd4 {[%emt 0:00:05]} 4. Nf3 {[%emt 0:00:01]} Nxb5 {[%emt 0:00:03]} 5. Nxb5 {[%emt 0:00:01]} a6 {[%emt 0:00:28]} 6. Nc3 {[%emt 0:00:02]} d6 {[%emt 0:00:30]} 7. d4 {[%emt 0:00:02]} cxd4 {[%emt 0:00:03]} 8. Qxd4 {[%emt 0:00:01]} Nf6 {[%emt 0:00:12]} 9. Bg5 {[%emt 0:00:03]} e6 {[%emt 0:00:23]} 10. O-O-O {[%emt 0:00:03]} Be7 {[%emt 0:00:29]} 11. e5 {[%emt 0:00:08]} dxe5 {[%emt 0:00:32]} 12. Qxe5 {[%emt 0:00:02]} Bd7 {[%emt 0:00:40]} 13. Rd2 {[%emt 0:02:05]} Rc8 {[%emt 0:04:54]} 14. Rhd1 {[%emt 0:00:02]} Qc7 {[%emt 0:01:01]} 15. Rxd7 {[%emt 0:00:07]} Nxd7 {[%emt 0:00:04]} 16. Qxg7 {[%emt 0:00:02]} Bxg5+ {[%emt 0:00:39]} 17. Nxg5 {[%emt 0:00:27]} Qf4+ {[%emt 0:00:26]} 18. Kb1 {[%emt 0:00:14]} Qf6 {[%emt 0:00:01]} 19. Qxf7+ {[%emt 0:00:18]} Qxf7 {[%emt 0:00:06]} 20. Nxf7 {[%emt 0:00:02]} Kxf7 {[%emt 0:00:36]} 21. Rxd7+ {[%emt 0:00:01]} Kf6 {[%emt 0:00:47]} 22. Rxb7 {[%emt 0:00:29]} Rhg8 {[%emt 0:00:45]} 23. g3 {[%emt 0:00:19]} h5 {[%emt 0:00:26]} 24. Rb6 {[%emt 0:01:17]} Ra8 {[%emt 0:00:35]} 25. Nd5+ {[%emt 0:00:13]} Ke5 {[%emt 0:00:01]} 26. Nb4 {[%emt 0:01:09]} a5 {[%emt 0:00:38]} 27. Nd3+ {[%emt 0:00:04]} Kf6 {[%emt 0:00:33]} 28. Nf4 {[%emt 0:00:02]} Kf5 {[%emt 0:00:44]} 29. Nxh5 {[%emt 0:02:05]} Rad8 {[%emt 0:00:22]} 30. Kc1 {[%emt 0:00:12]} Rd5 {[%emt 0:00:51]} 31. h3 {[%emt 0:00:48]} Rgd8 {[%emt 0:00:11]} 32. g4+ {[%emt 0:00:02]} Kg5 {[%emt 0:00:02]} 33. b3 {[%emt 0:00:03]} Rd1+ {[%emt 0:00:05]} 34. Kb2 {[%emt 0:00:01]} R8d6 {[%emt 0:00:17]} 35. Rb5+ {[%emt 0:01:06]} R6d5 {[%emt 0:00:02]} 36. Rb8 {[%emt 0:01:09]} R1d2 {[%emt 0:00:02]} 37. Ng3 {[%emt 0:00:41]} Kg6 {[%emt 0:00:10]} 38. Ne4 {[%emt 0:00:35]} R2d4 {[%emt 0:00:07]} 39. f3 {[%emt 0:00:04]} Rd8 {[%emt 0:00:05]} 40. Rb6 {[%emt 0:00:03]} Kf7 {[%emt 0:00:06]} 41. Ng5+ {[%emt 0:00:02]} Kg8 {[%emt 0:00:04]} 42. Nxe6 {[%emt 0:00:13]} R4d6 {[%emt 0:00:05]} 43. Rxd6 {[%emt 0:00:05]} Rxd6 {[%emt 0:00:01]} 44. Ng5 {[%emt 0:00:02]} Kg7 {[%emt 0:00:08]} 45. h4 {[%emt 0:00:03]} Kg6 {[%emt 0:00:01]} 46. Ne4 {[%emt 0:00:02]} Rd8 {[%emt 0:00:04]} 47. h5+ {[%emt 0:00:02]} Kh6 {[%emt 0:00:01]} 48. Kc3 {[%emt 0:00:09]} Rf8 {[%emt 0:00:02]} 49. Nd2 {[%emt 0:00:02]} Kg5 {[%emt 0:00:01]} 50. Kd3 {[%emt 0:00:04]} Kf4 {[%emt 0:00:01]} 51. c4 {[%emt 0:00:18]} Rd8+ {[%emt 0:00:09]} 52. Ke2 {[%emt 0:00:01]} Re8+ {[%emt 0:00:02]} 53. Ne4 {[%emt 0:00:01]} a4 {[%emt 0:00:15]} 54. b4 {[%emt 0:00:10]} a3 {[%emt 0:00:06]} 55. b5 {[%emt 0:00:04]} Rd8 {[%emt 0:00:13]} 56. b6 {[%emt 0:00:05]} Rb8 {[%emt 0:00:07]} 57. c5 {[%emt 0:00:01]} 1-0

[Event "Grand Prix Romania 1st Stage 2024"]
[Site "Bucuresti"]
[Date "2024.03.23"]
[Round "2.39"]
[White "Mihailiuc, Flavius-Iulian"]
[Black "Manolache, Marius"]
[Result "0-1"]
[ECO "B20"]
[WhiteElo "1900"]
[BlackElo "2387"]
[Annotator "RC"]
[PlyCount "60"]
[EventDate "2024.03.20"]
[EventType "swiss"]
[EventCountry "ROU"]
[SourceTitle "playchess.com"]
[Source "ChessBase"]
[SourceQuality "1"]
[TimeControl "900+5"]

1. e4 {[%emt 0:00:03]} c5 {[%emt 0:00:05]} 2. b4 {[%emt 0:00:01]} cxb4 {[%emt 0:00:02]} 3. a3 {[%emt 0:00:01]} bxa3 {[%emt 0:00:03]} 4. Bxa3 {[%emt 0:00:01]} d5 {[%emt 0:00:49]} 5. e5 {[%emt 0:00:08]} Nc6 {[%emt 0:00:07]} 6. d4 {[%emt 0:00:01]} a6 {[%emt 0:00:33]} 7. c3 {[%emt 0:00:08]} Nh6 {[%emt 0:00:17]} 8. Bd3 {[%emt 0:00:12]} g6 {[%emt 0:00:32]} 9. Ne2 {[%emt 0:00:14]} Bg7 {[%emt 0:00:07]} 10. O-O {[%emt 0:00:05]} O-O {[%emt 0:00:04]} 11. h3 {[%emt 0:00:24]} Qc7 {[%emt 0:02:00]} 12. g4 {[%emt 0:00:32]} f6 {[%emt 0:01:35]} 13. f4 {[%emt 0:00:08]} fxe5 {[%emt 0:00:11]} 14. fxe5 {[%emt 0:00:02]} Rxf1+ {[%emt 0:00:40]} 15. Qxf1 {[%emt 0:00:05]} Be6 {[%emt 0:01:05]} 16. Nd2 {[%emt 0:00:51]} Qd7 {[%emt 0:00:45]} 17. Qg2 {[%emt 0:00:20]} Rf8 {[%emt 0:00:09]} 18. Rf1 {[%emt 0:00:01]} Rxf1+ {[%emt 0:00:07]} 19. Nxf1 {[%emt 0:00:18]} Nf7 {[%emt 0:00:13]} 20. Ne3 {[%emt 0:00:21]} Bh6 {[%emt 0:00:06]} 21. Bc1 {[%emt 0:01:25]} Qd8 {[%emt 0:00:08]} 22. h4 {[%emt 0:00:48]} Qa5 {[%emt 0:01:06]} 23. g5 {[%emt 0:00:37]} Bg7 {[%emt 0:00:04]} 24. Nf4 {[%emt 0:00:37]} Qxc3 {[%emt 0:00:22]} 25. Bb2 {[%emt 0:01:40]} Qe1+ {[%emt 0:00:19]} 26. Nf1 {[%emt 0:00:04]} Bc8 {[%emt 0:00:30]} 27. Nxd5 {[%emt 0:00:37]} Qxh4 {[%emt 0:00:10]} 28. Bc4 {[%emt 0:00:37]} Nxg5 {[%emt 0:00:55]} 29. Nf4+ {[%emt 0:04:11]} Kh8 {[%emt 0:00:16]} 30. Qg3 {[%emt 0:00:02]} Qxf4 {[%emt 0:00:05]} 0-1

[Event "Grand Prix Romania 1st Stage 2024"]
[Site "Bucuresti"]
[Date "2024.03.23"]
[Round "3.1"]
[White "Motylev, Alexander"]
[Black "Cnejev, Vladimir-Alexandru"]
[Result "1-0"]
[ECO "C85"]
[WhiteElo "2611"]
[BlackElo "2311"]
[Annotator "TA"]
[PlyCount "107"]
[EventDate "2024.03.20"]
[EventType "swiss"]
[EventCountry "ROU"]
[SourceTitle "playchess.com"]
[Source "ChessBase"]
[SourceQuality "1"]
[TimeControl "900+5"]

{[%evp 14,107,7,1,23,-3,-16,0,0,-10,0,0,16,16,19,0,0,0,14,20,53,43,53,21,5,0,12,6,13,0,0,0,0,-14,-18,-27,-14,-26,0,0,8,7,82,71,71,81,69,71,69,68,95,95,95,94,126,127,116,119,866,930,902,761,1193,386,481,465,5373,281,338,161,623,623,616,623,623,444,623,621,583,594,587,527,496,489,1334,707,29962,29964,5311,450,452,0,29978,29979,29990,29991]} 1. e4 {[%emt 0:00:02]} e5 {[%emt 0:00:02]} 2. Nf3 {[%emt 0:00:01]} Nc6 {[%emt 0:00:02]} 3. Bb5 {[%emt 0:00:01]} a6 {[%emt 0:00:02]} 4. Ba4 {[%emt 0:00:01]} Nf6 {[%emt 0:00:03]} 5. O-O {[%emt 0:00:05]} Be7 {[%emt 0:00:09]} 6. Bxc6 {[%emt 0:00:24]} dxc6 {[%emt 0:00:04]} 7. Nc3 {[%emt 0:00:01]} Nd7 {[%emt 0:00:46]} 8. d4 {[%emt 0:00:02]} Bd6 {[%emt 0:01:09]} 9. Bg5 {[%emt 0:01:05][%cal Bc1g5,Bg5h4,Bh4g3][%mdl 32]} f6 {[%emt 0:00:03]} 10. Bh4 {[%emt 0:00:37][%cal Of3e5]} O-O {[%emt 0:00:16] The position is equal.} 11. Bg3 {[%emt 0:00:13]} Qe7 {[%emt 0:00:30]} 12. Re1 {[%emt 0:00:03]} Rd8 {[%emt 0:02:06]} 13. Qe2 {[%emt 0:01:00]} exd4 {[%emt 0:00:48] Hoping for ...Bxg3.} 14. Nxd4 {[%emt 0:00:02]} Bxg3 {[%emt 0:01:37]} 15. hxg3 {[%emt 0:00:04]} Nb6 {[%emt 0:00:29]} 16. Rad1 {[%emt 0:00:46]} c5 {[%emt 0:00:54]} 17. Nb3 {[%emt 0:00:09]} Be6 {[%emt 0:00:42]} 18. Qe3 {[%emt 0:00:22]} Bxb3 {[%emt 0:01:27]} 19. cxb3 {[%emt 0:00:02]} c4 {[%emt 0:00:52]} 20. bxc4 {[%emt 0:02:34]} Nxc4 {[%emt 0:00:02]} 21. Qc1 {[%emt 0:00:09]} c6 {[%emt 0:00:04] Prevents Nd5} 22. Na4 {[%emt 0:02:43]} Ne5 {[%emt 0:01:57]} 23. Nc5 {[%emt 0:00:54]} b6 {[%emt 0:01:28]} 24. Na4 {[%emt 0:00:28]} b5 {[%emt 0:01:19]} 25. Nc5 {[%emt 0:00:24]} Nc4 {[%emt 0:00:01]} 26. Nd3 {[%emt 0:00:26]} Rd6 {[%emt 0:00:16]} 27. b3 {[%emt 0:00:51]} Rad8 {[%emt 0:00:02]} (27... Ne5 $11 {remains equal.} 28. Nxe5 Qxe5 29. Rxd6 Qxd6) 28. bxc4 $16 {[%emt 0:00:29]} Rxd3 {[%emt 0:00:02]} 29. Rxd3 {[%emt 0:00:03]} Rxd3 {[%emt 0:00:02]} 30. cxb5 {[%emt 0:00:01]} cxb5 {[%emt 0:00:07][%mdl 4096] Endgame. KQR-KQR} 31. Qc8+ {[%emt 0:00:02]} Qd8 {[%emt 0:00:10] White now steadily converts the win.} 32. Qxa6 {[%emt 0:00:02]} Rd1 {[%emt 0:00:05]} 33. Qe6+ {[%emt 0:00:31]} Kh8 {[%emt 0:00:04]} 34. Rxd1 {[%emt 0:00:15]} Qxd1+ {[%emt 0:00:01] KQ-KQ} 35. Kh2 {[%emt 0:00:01][%cal Re6e8]} h6 $2 {[%emt 0:00:08][%mdl 8192]} (35... Qh5+ $16 36. Qh3 Qe8) 36. Qe8+ $18 {[%emt 0:00:10]} Kh7 {[%emt 0:00:02]} 37. Qxb5 {[%emt 0:00:04] aiming for a4.} Qc2 {[%emt 0:00:11]} 38. Qd5 $2 {[%emt 0:00:45]} (38. a4 Qxe4 39. a5) 38... Kh8 {[%emt 0:00:05]} 39. f3 {[%emt 0:00:07]} Kh7 {[%emt 0:00:06]} (39... Qa4 $142 40. Qe6 h5) 40. g4 $2 {[%emt 0:00:35]} (40. e5 {Intending Qe4+ and mate.} Qg6 41. e6) 40... Qf2 {[%emt 0:00:03]} 41. Kh3 {[%emt 0:00:34] Dodges Qh4+} (41. Qf5+ $142 Kh8 42. Qa5) 41... g5 $2 {[%emt 0:00:05]} (41... Qe1) 42. Qf7+ {[%emt 0:00:14]} Kh8 {[%emt 0:00:04][%csl Gg5][%cal Rf2h4]} 43. Qxf6+ {[%emt 0:00:10]} Kh7 {[%emt 0:00:02][%csl Gg5][%cal Rf2h4]} 44. Qf7+ {[%emt 0:00:11]} Kh8 {[%emt 0:00:02]} 45. Qh5 {[%emt 0:00:10] Dodges Qh4+} Kg7 {[%emt 0:00:08] [#]} 46. Kh2 {[%emt 0:00:31] Inhibits Qg1+.} Qxa2 {[%emt 0:00:03]} 47. Qh3 {[%emt 0:00:03]} Qa6 {[%emt 0:00:13]} 48. Qg3 {[%emt 0:00:01] f4 is the strong threat.} Kf6 {[%emt 0:00:04]} (48... Qb6 $142 49. Qe5+ Kg8 50. Qe8+ Kg7 51. Qe7+ Kh8) 49. Qb8 {[%emt 0:00:04]} Qc6 {[%emt 0:00:06]} 50. Qf8+ {[%emt 0:00:24]} Kg6 {[%emt 0:00:06]} 51. Qg8+ {[%emt 0:00:10]} (51. f4 $142 {f5+ would kill now.} gxf4 52. e5 (52. Qxf4 Kg7 $18)) 51... Kf6 {[%emt 0:00:03]} 52. Qf8+ {[%emt 0:00:09]} (52. Qh7 $18 Qc1 53. Qxh6+ Ke7 54. Qg7+ Ke8 55. Qg6+ Ke7 56. Qf5) 52... Ke5 $2 {[%emt 0:00:04][%mdl 8192] [#]} (52... Kg6 $11 53. Qg8+ Kf6) 53. Qg7+ {[%emt 0:00:03]} Kf4 {[%emt 0:00:02]} 54. Qd4 {[%emt 0:00:08] Weighted Error Value: White=0.38/Black=0.43.  Loses game:     	---       	Black=2      Mistake:       	White=1     	Black=4      Inaccurate:     	White=3     	Black=5      OK:         	White=12    	Black=10     Best:        	White=6     	---} 1-0

[Event "Grand Prix Romania 1st Stage 2024"]
[Site "Bucuresti"]
[Date "2024.03.23"]
[Round "3.2"]
[White "Cosma, Ioan"]
[Black "Ponomariov, Ruslan"]
[Result "0-1"]
[ECO "B52"]
[WhiteElo "2316"]
[BlackElo "2646"]
[Annotator "TA"]
[PlyCount "56"]
[EventDate "2024.03.20"]
[EventType "swiss"]
[EventCountry "ROU"]
[SourceTitle "playchess.com"]
[Source "ChessBase"]
[SourceQuality "1"]
[TimeControl "900+5"]

{[%evp 12,56,-1,4,-2,-10,-17,-22,-4,-14,-18,-23,-18,-12,-7,-45,-9,-32,-26,-22,-6,-101,-103,-109,-78,-78,-76,-104,-102,-154,-152,-154,-160,-155,-173,-162,-168,-161,-149,-265,-248,-260,-261,-267,-272,-250,-209]} 1. e4 {[%emt 0:00:02]} c5 {[%emt 0:00:02]} 2. Nf3 {[%emt 0:00:01]} d6 {[%emt 0:00:01]} 3. Bb5+ {[%emt 0:00:26]} Bd7 {[%emt 0:00:10]} 4. Bxd7+ {[%emt 0:00:02]} Nxd7 {[%emt 0:00:01]} 5. d4 {[%emt 0:00:15]} cxd4 {[%emt 0:00:21]} 6. Qxd4 {[%emt 0:00:10]} Ngf6 {[%emt 0:00:18][%cal Bg8f6,Bf6d7,Bd7c5,Bc5d3][%mdl 32]} 7. O-O {[%emt 0:00:43]} g6 {[%emt 0:00:21]} 8. e5 {[%emt 0:00:38]} dxe5 {[%emt 0:00:12]} 9. Nxe5 {[%emt 0:00:01]} Bg7 {[%emt 0:00:25] The position is equal.} 10. Nxd7 {[%emt 0:00:05]} Qxd7 {[%emt 0:00:02]} 11. Qxd7+ {[%emt 0:00:11]} Nxd7 {[%emt 0:00:43]} 12. c3 {[%emt 0:00:41]} Nc5 {[%emt 0:00:13]} 13. Rd1 {[%emt 0:01:21] Wards off Nd3} Rd8 {[%emt 0:00:15]} 14. Rxd8+ Kxd8 {[%emt 0:00:01]} 15. Be3 {[%emt 0:00:54]} Nd3 {[%emt 0:00:47]} 16. Bxa7 {[%emt 0:03:21]} (16. Na3 $11 Kc8 (16... Nxb2 17. Rb1 $11) 17. Rb1) 16... Nxb2 $17 {[%emt 0:00:22] Black is more active.} 17. Bd4 {[%emt 0:00:15]} Bxd4 {[%emt 0:04:06]} 18. cxd4 {[%emt 0:00:02][%mdl 4096] Endgame. KRN-KRN} Kd7 {[%emt 0:00:01]} 19. Nc3 {[%emt 0:02:00]} Rc8 {[%emt 0:00:08]} 20. Nd5 {[%emt 0:00:40]} (20. Ne4 $142) 20... Kd6 {[%emt 0:00:57]} 21. Ne3 {[%emt 0:00:07] [#]} Nd3 $1 {[%emt 0:00:03]} 22. Kf1 {[%emt 0:00:48]} Rc1+ {[%emt 0:00:21]} 23. Rxc1 {[%emt 0:00:10]} Nxc1 $19 {[%emt 0:00:01] KN-KN} 24. a3 {[%emt 0:00:08]} Nb3 {[%emt 0:00:12]} 25. d5 {[%emt 0:00:26]} (25. Ke2 $17) 25... Nd4 {[%emt 0:00:23]} 26. Ke1 {[%emt 0:00:33]} Nb5 {[%emt 0:00:21]} 27. a4 {[%emt 0:00:17]} Nc3 {[%emt 0:00:03][%csl LRa4,LRd5]} 28. a5 {[%emt 0:00:01]} Nxd5 {[%emt 0:00:48] Weighted Error Value: White=0.23 (precise) /Black=0.06 (flawless) .  Mistake:       	White=3     	---        Inaccurate:     	White=2     	Black=1      OK:         	White=7     	Black=8      Best:        	White=1     	Black=2      Strong:       	---       	Black=1} 0-1